bitfinex-derivatives/quotes_ETHF0:USTF0_20250420
["timestamp","ask_amount","ask_price","bid_price","bid_amount"]
[1745145850133,2.228,1582.0,1581.9,1.2644]
[1745145850319,2.228,1582.0,1581.9,3.9911]
[1745145851531,2.228,1582.0,1581.9,8.9911]
[1745145851723,2.228,1582.0,1581.9,20.1851]
[1745145851926,2.228,1582.0,1581.9,15.1851]
[1745145852124,2.228,1582.0,1581.7,3.2078]
[1745145852125,1.26446,1581.9,1581.7,3.2078]
[1745145852327,3.01842,1581.9,1581.7,3.2078]
[1745145853030,1.754,1581.9,1581.7,3.2078]
[1745145853224,3.982,1581.9,1581.7,3.2078]
[1745145853427,3.982,1581.9,1581.8,1.26448]
[1745145853627,3.982,1581.9,1581.7,4.4723]
[1745145853826,3.982,1581.9,1581.7,4.1876]
[1745145854026,3.982,1581.9,1581.8,1.26448]
[1745145854634,3.982,1581.9,1581.8,2.89468]
[1745145855335,3.982,1581.9,1581.7,4.47232]
[1745145855634,3.982,1581.9,1581.7,4.1876]
[1745145855831,2.228,1581.9,1581.8,1.26448]
[1745145856031,2.228,1581.9,1581.8,2.94438]
[1745145856228,2.228,1581.9,1581.8,8.92418]
[1745145856629,1.2482,1581.9,1581.8,7.94438]
[1745145857125,1.6737,1582.4,1582.3,1.26408]
[1745145857427,1.6737,1582.4,1582.3,4.47188]
[1745145857737,1.6737,1582.4,1582.3,3.2078]
[1745145857931,1.6737,1582.4,1582.2,3.2078]
[1745145858137,1.6737,1582.4,1582.2,4.47196]
[1745145858334,3.9017,1582.4,1582.2,3.2078]
[1745145858532,3.9017,1582.4,1582.3,1.26408]
[1745145859138,3.9017,1582.4,1582.2,4.47193]
[1745145859345,5.16576,1582.4,1582.2,3.2078]
[1745145859537,3.9017,1582.4,1582.2,4.47193]
[1745145859733,3.9017,1582.4,1582.2,3.2078]
[1745145859938,8.9017,1582.4,1582.0,10.884]
[1745145860140,1.26414,1582.3,1582.0,10.884]
[1745145860337,1.638,1582.2,1582.0,10.884]
[1745145860842,1.638,1582.2,1582.1,4.47204]
[1745145861245,2.228,1582.2,1582.1,6.20554]
[1745145863934,2.228,1582.2,1582.1,11.20554]
[1745145864137,3.9997,1582.7,1582.5,1.26387]
[1745145864338,3.9997,1582.7,1582.5,4.47167]
[1745145864934,3.9997,1582.7,1582.5,3.2078]
[1745145865128,3.9997,1582.7,1582.6,1.26384]
[1745145865939,2.228,1582.7,1582.6,1.26384]
[1745145866139,2.228,1582.7,1582.6,2.91894]
[1745145867444,2.228,1582.7,1582.6,3.2078]
[1745145867741,2.228,1582.7,1582.6,4.47164]
[1745145868641,2.228,1582.7,1582.4,3.2078]
[1745145868844,1.61,1582.6,1582.5,1.26392]
[1745145869044,1.61,1582.6,1582.4,1.26395]
[1745145869234,3.838,1582.6,1582.4,1.26395]
[1745145869942,3.838,1582.6,1582.5,1.26392]
[1745145870143,3.838,1582.6,1582.4,1.26394]
[1745145870448,3.838,1582.6,1582.5,1.26392]
[1745145870647,3.838,1582.6,1582.3,3.2078]
[1745145870849,3.838,1582.6,1582.5,1.26392]
[1745145871249,3.838,1582.6,1582.4,1.6565]
[1745145871545,3.838,1582.6,1582.5,1.26392]
[1745145871844,3.838,1582.6,1582.5,4.47172]
[1745145872246,3.838,1582.6,1582.5,1.26392]
[1745145872447,7.0458,1582.6,1582.3,3.2078]
[1745145872654,7.0458,1582.6,1582.4,1.26396]
[1745145873558,7.0458,1582.6,1582.1,10.535]
[1745145873853,8.30966,1582.6,1582.2,1.26411]
[1745145874055,7.0458,1582.6,1582.1,10.535]
[1745145874455,3.2078,1582.4,1582.2,1.26416]
[1745145874652,1.7389,1582.3,1582.2,1.26416]
[1745145875158,3.9669,1582.3,1582.2,1.26416]
[1745145878157,3.9669,1582.3,1582.2,2.37236]
[1745145878360,2.228,1582.3,1582.2,2.37236]
[1745145879260,2.228,1582.3,1582.2,7.37236]
[1745145880360,1e-05,1582.3,1582.2,7.37236]
[1745145880559,2.32649501,1582.4,1582.3,1.26408]
[1745145880858,2.32649501,1582.4,1582.3,4.47188]
[1745145881058,0.97811501,1582.4,1582.3,9.47188]
[1745145881263,5.01e-06,1582.4,1582.3,9.47188]
[1745145881563,5.01e-06,1582.4,1582.3,14.63178]
[1745145882054,10.5203,1583.1,1582.8,1.26366]
[1745145882055,21.00600879,1583.0,1582.8,1.26366]
[1745145882266,7.3125,1582.9,1582.7,11.1797]
[1745145882656,9.77565914,1582.9,1582.7,11.1797]
[1745145882853,12.98345914,1582.9,1582.7,9.916]
[1745145883164,15.21145914,1582.9,1582.7,11.17976]
[1745145883661,15.21145914,1582.9,1582.7,11.17975]
[1745145884062,15.21145914,1582.9,1582.7,9.916]
[1745145884467,15.21145914,1582.9,1582.7,11.17969]
[1745145884763,0.80571314,1582.8,1582.7,11.17969]
[1745145884967,8.02201314,1582.8,1582.7,11.17969]
[1745145885163,18.97687228,1582.8,1582.5,1.2639]
[1745145885458,12.71317228,1582.8,1582.3,15.98397]
[1745145885658,12.71317228,1582.8,1582.7,1.26376]
[1745145886756,12.71317228,1582.8,1582.6,7.26]
[1745145886957,12.71317228,1582.8,1582.7,1.26376]
[1745145887865,12.71317228,1582.8,1582.6,8.5238]
[1745145888163,13.97685228,1582.8,1582.5,4.47166]
[1745145888464,13.97685228,1582.8,1582.5,1.26386]
[1745145888465,3.2078,1582.7,1582.5,1.26386]
[1745145888665,7.3928,1582.6,1582.5,1.26386]
[1745145889162,12.08395914,1582.6,1582.4,1.26392]
[1745145889865,12.08395914,1582.6,1582.5,1.26392]
[1745145890368,12.08395914,1582.6,1582.3,12.8238]
[1745145890667,12.08395914,1582.6,1582.5,1.26392]
[1745145891265,12.08395914,1582.6,1582.3,12.8238]
[1745145891463,12.08395914,1582.6,1582.5,1.26392]
[1745145894065,2.228,1582.6,1582.5,1.26392]
[1745145894366,2.228,1582.6,1582.5,4.47172]
[1745145898262,2.228,1582.6,1582.5,1.26392]
[1745145899164,2.228,1582.6,1582.5,11.72012]
[1745145900465,7.89895914,1582.6,1582.4,1.26397]
[1745145900662,7.1481,1582.5,1581.9,12.1898]
[1745145900870,3.2078,1582.0,1581.9,10.2464]
[1745145901161,2.228,1582.0,1581.9,8.982]
[1745145901370,12.89895914,1582.0,1581.5,8.982]
[1745145901569,7.5854,1581.9,1581.8,1.26448]
[1745145902067,10.04855914,1581.9,1581.8,1.26448]
[1745145902270,12.27655914,1581.9,1581.8,1.26448]
[1745145902666,9.8134,1581.9,1581.8,1.26448]
[1745145902870,12.27655914,1581.9,1581.8,4.47228]
[1745145903068,9.8134,1581.9,1581.8,1.26448]
[1745145903269,9.8134,1581.9,1581.8,4.47228]
[1745145903472,2.228,1581.9,1581.8,4.47228]
[1745145903767,2.228,1581.9,1581.8,9.47228]
[1745145904170,0.80607428,1582.0,1581.9,1.2644]
[1745145904382,0.80607428,1582.0,1581.9,8.9484]
[1745145905168,3.03407428,1582.0,1581.9,8.9484]
[1745145906573,4.69115914,1582.0,1581.9,1.2644]
[1745145909072,4.69115914,1582.0,1581.8,4.47222]
[1745145909270,7.0677,1581.9,1581.8,1.26442]
[1745145909565,7.0677,1581.9,1581.6,3.2078]
[1745145909761,3.2078,1581.8,1581.5,8.982]
[1745145909963,3.2078,1581.6,1581.5,8.982]
[1745145910163,5.4358,1581.6,1581.5,8.982]
[1745145910367,12.89895914,1581.6,1581.5,8.982]
[1745145910576,21.14865914,1581.6,1581.5,8.982]
[1745145910770,19.95014,1581.6,1581.2,95.14076086]
[1745145910969,3.2078,1581.4,1581.2,95.14076086]
[1745145911274,8.2497,1581.3,1581.2,95.14076086]
[1745145912075,10.4777,1581.3,1581.2,95.14076086]
[1745145912271,10.4777,1581.3,1581.2,93.87584086]
[1745145912575,10.4777,1581.3,1581.1,8.692]
[1745145912576,15.4777,1581.3,1581.1,8.692]
[1745145912773,13.6855,1581.3,1581.1,8.692]
[1745145914376,18.6855,1581.3,1581.1,8.692]
[1745145914972,13.6855,1581.3,1581.1,9.95703]
[1745145915179,13.6855,1581.3,1581.2,1.26496]
[1745145915180,10.4777,1581.3,1581.2,1.26496]
[1745145915674,10.4777,1581.3,1581.1,5.09902876]
[1745145916070,10.4777,1581.3,1581.1,3.15619876]
[1745145916273,10.4777,1581.3,1581.2,1.26496]
[1745145916671,13.6855,1581.3,1581.1,3.15622876]
[1745145916976,10.4777,1581.3,1581.2,1.26496]
[1745145918481,10.4777,1581.3,1581.1,1.89122876]
[1745145918880,10.4777,1581.3,1581.2,1.26496]
[1745145919367,10.4777,1581.3,1581.2,8.3437]
[1745145919572,10.4777,1581.3,1581.1,6.36401876]
[1745145919775,10.4777,1581.3,1581.2,1.26496]
[1745145920470,10.4777,1581.3,1581.1,3.15624876]
[1745145920675,10.4777,1581.3,1581.1,3.15621876]
[1745145920877,10.4777,1581.3,1581.1,1.89122876]
[1745145921068,10.4777,1581.3,1581.1,3.15621876]
[1745145921468,10.4777,1581.3,1581.1,1.89122876]
[1745145921980,1.26516,1581.0,1580.5,3.2078]
[1745145922281,7.7525,1580.9,1580.8,1.26528]
[1745145922671,7.7525,1580.9,1580.7,12.88212]
[1745145922977,7.7525,1580.9,1580.8,1.26528]
[1745145923181,9.9805,1580.9,1580.7,9.67431]
[1745145923376,9.9805,1580.9,1580.7,8.409]
[1745145923572,3.2078,1580.8,1580.7,8.409]
[1745145923767,11.5783,1580.8,1580.7,8.409]
[1745145924279,10.5985,1580.8,1580.7,8.409]
[1745145925179,18.8063,1580.8,1580.7,8.409]
[1745145925379,20.07161,1580.8,1580.4,9.67554]
[1745145925682,13.8063,1580.8,1580.5,1.26551]
[1745145925981,15.07161,1580.8,1580.4,9.67555]
[1745145926283,1.26536,1580.7,1580.4,8.41]
[1745145926485,11.4202,1580.6,1580.4,8.41]
[1745145927079,1.26552,1580.5,1580.4,8.41]
[1745145927283,9.47792,1580.5,1580.4,8.41]
[1745145927477,8.2124,1580.5,1580.4,9.6756]
[1745145928182,10.4404,1580.5,1580.4,9.6756]
[1745145929075,8.2051,1581.0,1580.4,22.6748]
[1745145929376,8.0453,1580.9,1580.6,6.3714]
[1745145929574,8.0453,1580.9,1580.8,1.26528]
[1745145929775,8.0453,1580.9,1580.8,9.67728]
[1745145929971,8.0453,1580.9,1580.8,8.412]
[1745145930181,10.2733,1580.9,1580.8,8.412]
[1745145930384,10.2733,1580.9,1580.8,9.67728]
[1745145930682,15.2733,1580.9,1580.4,3.2078]
[1745145930880,10.2733,1580.9,1580.4,3.2078]
[1745145931184,10.2733,1580.9,1580.6,1.2654]
[1745145931379,11.53852,1580.9,1580.5,9.26467]
[1745145931586,4.47314,1580.8,1580.4,1.26558]
[1745145931771,8.0453,1580.7,1580.5,1.26551]
[1745145932177,10.2733,1580.7,1580.5,1.26551]
[1745145932380,10.2733,1580.7,1580.6,17.43834]
[1745145933086,10.2733,1580.7,1580.6,16.1729]
[1745145933385,0.55348,1581.1,1580.6,21.1729]
[1745145933584,8.25266372,1581.8,1580.6,21.1729]
[1745145933585,10.00898372,1581.8,1581.7,1.26456]
[1745145933793,10.00898372,1581.8,1581.7,3.2078]
[1745145934089,10.00898372,1581.8,1581.7,12.59936]
[1745145934279,12.23698372,1581.8,1581.7,12.59936]
[1745145934479,12.23698372,1581.8,1581.7,11.3348]
[1745145934688,5.4358,1581.8,1581.7,12.59936]
[1745145935785,5.4358,1581.8,1581.7,11.3348]
[1745145935985,5.4358,1581.8,1581.7,12.59936]
[1745145939188,5.4358,1581.8,1581.7,11.3348]
[1745145940490,10.4358,1581.8,1581.7,11.3348]
[1745145942086,5.4358,1581.8,1581.7,11.3348]
[1745145942481,5.4358,1581.8,1581.7,7.76198254]
[1745145942785,5.4358,1581.8,1581.7,10.96978254]
[1745145946895,5.4358,1581.8,1581.7,9.70522254]
[1745145947195,11.70028,1581.8,1581.7,6.49742254]
[1745145947386,10.4358,1581.8,1581.7,6.49742254]
[1745145947582,5.4358,1581.8,1581.6,3.2078]
[1745145947794,5.4358,1581.8,1581.7,10.43056]
[1745145948384,5.4358,1581.8,1581.7,15.43056]
[1745145948585,12.15669461,1582.0,1581.9,1.2644]
[1745145948791,15.36449461,1582.0,1581.9,12.5962]
[1745145949095,9.55569461,1582.0,1581.9,12.5962]
[1745145949307,2.228,1582.0,1581.9,12.5962]
[1745145951701,5.4358,1582.0,1581.9,12.5962]
[1745145951994,14.6741,1582.0,1581.9,12.5962]
[1745145952199,5.4358,1582.0,1581.9,12.5962]
[1745145953404,2.228,1582.0,1581.9,12.5962]
[1745145955806,4.11989461,1582.3,1582.2,1.26416]
[1745145956102,4.11989461,1582.3,1582.2,4.47196]
[1745145957099,6.34789461,1582.3,1582.2,4.47196]
[1745145957509,5.78137461,1582.3,1582.2,105.85696]
[1745145957699,4.49197461,1582.3,1582.2,105.85696]
[1745145957899,4.49197461,1582.3,1582.2,114.40216]
[1745145958096,6.19241246,1582.5,1582.4,1.264]
[1745145958302,6.19241246,1582.5,1582.4,12.3078]
[1745145959107,8.42041246,1582.5,1582.4,12.3078]
[1745145959404,2.228,1582.5,1582.4,12.3078]
[1745145959608,2.228,1582.5,1582.4,11.0438]
[1745145959609,5.4358,1582.5,1582.4,11.0438]
[1745145959905,14.089,1582.5,1582.4,11.0438]
[1745145960102,5.4358,1582.5,1582.4,12.3078]
[1745145961303,2.228,1582.5,1582.4,12.3078]
[1745145962508,5.4358,1582.5,1582.4,11.0438]
[1745145962808,13.9801,1582.5,1582.4,12.3078]
[1745145962997,13.9801,1582.5,1582.4,3.2078]
[1745145963313,1.26414,1582.3,1581.9,8.82437]
[1745145963510,8.5443,1582.2,1581.9,8.82437]
[1745145963809,11.7521,1582.2,1581.9,8.82434]
[1745145964010,3.2078,1582.1,1581.9,8.82434]
[1745145964209,8.5443,1582.0,1581.9,7.56]
[1745145964419,11.7521,1582.0,1581.9,7.56]
[1745145964607,16.7521,1582.0,1581.8,3.2078]
[1745145964812,3.2078,1581.9,1581.8,10.7678]
[1745145965108,13.9801,1581.9,1581.2,3.2078]
[1745145965410,3.2078,1581.6,1581.3,7.56]
[1745145965611,8.5958,1581.5,1581.3,7.56]
[1745145965811,11.8036,1581.5,1581.3,8.82483]
[1745145966011,3.2078,1581.4,1581.3,7.56]
[1745145966207,11.8036,1581.4,1581.3,8.82488]
[1745145966512,11.8036,1581.4,1581.3,7.56]
[1745145966707,11.8036,1581.4,1581.3,8.82488]
[1745145967100,4.8314,1582.1,1581.8,1.26443]
[1745145967315,14.78821246,1582.0,1581.8,7.56]
[1745145967504,14.78821246,1582.0,1581.8,8.82447]
[1745145968210,17.01621246,1582.0,1581.8,8.82447]
[1745145968411,17.01621246,1582.0,1581.8,8.82446]
[1745145969412,17.01621246,1582.0,1581.8,7.56]
[1745145969607,17.01621246,1582.0,1581.8,8.82448]
[1745145970006,17.01621246,1582.0,1581.8,7.56]
[1745145970508,1.2644,1581.9,1581.8,7.56]
[1745145970705,9.4244,1581.9,1581.8,7.56]
[1745145970905,9.4244,1581.9,1581.8,8.82448]
[1745145971116,11.6524,1581.9,1581.8,8.82448]
[1745145971415,11.6524,1581.9,1581.8,1.26448]
[1745145972211,11.6524,1581.9,1581.7,1.2645]
[1745145972405,11.6524,1581.9,1581.8,1.26448]
[1745145973010,11.6524,1581.9,1581.8,4.47228]
[1745145974115,11.6524,1581.9,1581.8,3.2078]
[1745145974616,2.228,1581.9,1581.8,4.47228]
[1745145975210,9.8987,1582.2,1582.1,1.26424]
[1745145975414,6.19241246,1582.3,1582.2,1.26416]
[1745145975723,6.19241246,1582.3,1582.2,10.56806]
[1745145976205,8.42041246,1582.3,1582.2,10.56806]
[1745145976810,8.42041246,1582.3,1582.2,15.56806]
[1745145977220,2.228,1582.3,1582.2,15.56806]
[1745145978618,3.49208,1582.3,1582.2,7.29]
[1745145978818,1.26418,1582.2,1581.9,10.4978]
[1745145979119,9.8596,1582.1,1582.0,1.26432]
[1745145980311,12.0876,1582.1,1581.9,11.76214]
[1745145980511,12.0876,1582.1,1581.9,10.4978]
[1745145980817,12.0876,1582.1,1581.9,11.76219]
[1745145981317,12.0876,1582.1,1581.9,10.4978]
[1745145981618,18.35184,1582.1,1581.9,10.4978]
[1745145981920,13.35184,1582.1,1581.9,10.4978]
[1745145982317,12.0876,1582.1,1581.9,11.76219]
[1745145982515,12.0876,1582.1,1582.0,1.26432]
[1745145984023,12.89367214,1582.1,1582.0,1.26432]
[1745145984715,12.89367214,1582.1,1581.9,10.4978]
[1745145985313,12.89367214,1582.1,1581.9,11.76219]
[1745145985714,14.15791214,1582.1,1581.9,10.4978]
[1745145986114,19.54425246,1582.1,1581.9,10.4978]
[1745145986620,18.28001246,1582.1,1581.9,10.4978]
[1745145987017,18.28001246,1582.1,1581.9,11.76217]
[1745145987519,18.28001246,1582.1,1581.9,11.76216]
[1745145987722,19.54425246,1582.1,1581.9,10.4978]
[1745145988024,19.54429246,1582.1,1581.9,10.4978]
[1745145988220,18.28001246,1582.1,1581.9,10.4978]
[1745145988420,19.54428246,1582.1,1581.9,10.4978]
[1745145988720,19.54430246,1582.1,1581.9,10.4978]
[1745145989523,19.54430246,1582.1,1581.9,11.7622]
[1745145989725,19.54430246,1582.1,1581.9,10.4978]
[1745145990028,19.54430246,1582.1,1581.9,11.7622]
[1745145990326,19.54430246,1582.1,1581.9,10.4978]
[1745145990522,1.26432,1582.0,1581.9,10.4978]
[1745145990822,16.11924,1582.0,1581.4,8.28377]
[1745145991023,1.26482,1581.4,1581.1,7.019]
[1745145991215,1.26482,1581.4,1580.8,7.019]
[1745145991216,9.7506,1581.3,1580.8,7.019]
[1745145991411,9.7506,1581.3,1581.1,1.26501]
[1745145991820,9.7506,1581.3,1581.2,1.26496]
[1745145992025,9.7506,1581.3,1581.1,3.2078]
[1745145992224,13.2435,1581.3,1581.1,3.2078]
[1745145992420,13.2435,1581.3,1580.9,3.2078]
[1745145992421,16.9786,1581.3,1580.9,3.2078]
[1745145992626,1.26536,1580.7,1580.3,3.2078]
[1745145992826,9.7248,1580.6,1580.3,3.2078]
[1745145993023,3.2078,1580.4,1579.7,3.2078]
[1745145993225,1.26624,1579.6,1579.5,3.2078]
[1745145993522,1.26613,1579.8,1579.1,3.2078]
[1745145993724,9.7248,1579.5,1579.4,1.26638]
[1745145993927,4.9482,1579.9,1579.6,1.26621]
[1745145994113,9.7248,1579.8,1579.7,7.02]
[1745145994527,9.7248,1579.8,1579.7,11.49396]
[1745145994718,4.47353,1580.3,1579.7,11.49396]
[1745145994921,9.7248,1580.2,1579.8,10.94717]
[1745145995122,9.7248,1580.2,1579.9,4.47376]
[1745145995123,6.19722946,1580.0,1579.9,4.47376]
[1745145995521,6.19722946,1580.0,1579.8,10.94713]
[1745145995726,6.19722946,1580.0,1579.9,3.2078]
[1745145996627,6.19722946,1580.0,1579.9,4.4738]
[1745145996925,6.19722946,1580.0,1579.9,9.4738]
[1745145997129,6.19722946,1580.0,1579.9,108.1328]
[1745145997332,8.25191104,1580.2,1580.1,1.26584]
[1745145997630,6.62952104,1580.2,1580.1,11.49564]
[1745145997820,5.26683104,1580.2,1580.1,16.49564]
[1745145998017,1.04e-06,1580.2,1580.1,16.49564]
[1745145998227,8.23398404,1581.0,1580.4,3.16398]
[1745145998428,8.23398404,1581.0,1580.8,3.2078]
[1745145998730,8.23398404,1581.0,1580.9,16.6061]
[1745145998928,8.23398404,1581.0,1580.9,17.87126]
[1745146000120,17.56788404,1581.0,1580.9,17.87126]
[1745146001222,9.3339,1581.0,1580.9,17.87126]
[1745146001620,17.5417,1581.0,1580.7,96.443]
[1745146001824,9.3339,1581.0,1580.7,96.443]
[1745146002132,9.3339,1581.0,1580.9,1.2652]
[1745146002524,9.7719,1581.2,1581.1,1.26498]
[1745146002725,9.7719,1581.2,1581.1,7.023]
[1745146003331,11.9999,1581.2,1581.1,1.26504]
[1745146003630,2.228,1581.2,1581.1,8.28804]
[1745146003826,2.228,1581.2,1581.1,17.72314]
[1745146004025,2.228,1581.2,1581.1,22.72314]
[1745146004232,9.7719,1581.5,1581.3,1.26486]
[1745146004433,9.7719,1581.5,1581.3,1.26484]
[1745146004632,9.7719,1581.5,1581.3,3.2078]
[1745146005129,11.9999,1581.5,1581.3,3.2078]
[1745146005434,11.9999,1581.5,1581.4,7.023]
[1745146005932,18.26464,1581.5,1581.3,7.023]
[1745146006130,1.2649,1581.3,1581.2,7.023]
[1745146006432,3.2078,1581.4,1581.2,7.023]
[1745146006631,9.487,1581.3,1581.0,1.26505]
[1745146006931,9.487,1581.3,1581.1,8.28801]
[1745146007231,11.715,1581.3,1581.1,8.28801]
[1745146007432,11.715,1581.3,1581.0,1.26509]
[1745146007631,11.715,1581.3,1581.1,8.28803]
[1745146008125,11.715,1581.3,1581.2,1.26496]
[1745146010026,11.715,1581.3,1581.2,10.82186]
[1745146010426,11.715,1581.3,1581.1,7.023]
[1745146010633,3.2078,1581.2,1581.1,7.023]
[1745146010921,4.47277,1581.2,1581.0,7.022]
[1745146011125,4.47277,1581.2,1580.8,4.47301]
[1745146011126,9.9644,1581.1,1580.8,4.47301]
[1745146011321,9.9644,1581.1,1581.0,7.022]
[1745146012134,12.1924,1581.1,1581.0,7.022]
[1745146012323,12.1924,1581.1,1581.0,8.28712]
[1745146012527,12.1924,1581.1,1581.0,7.022]
[1745146012834,12.1924,1581.1,1580.8,14.56974]
[1745146013036,13.45744,1581.1,1580.8,14.56974]
[1745146013238,13.45744,1581.1,1580.9,6.737]
[1745146013435,12.1924,1581.1,1580.9,6.737]
[1745146013633,12.1924,1581.1,1580.9,8.00219]
[1745146013835,12.1924,1581.1,1581.0,1.26512]
[1745146014235,9.9644,1581.1,1580.9,17.36834]
[1745146014435,9.9644,1581.1,1581.0,1.26512]
[1745146014735,4.9591,1581.5,1581.0,1.26512]
[1745146014736,28.9196173,1582.8,1582.3,3.2078]
[1745146014931,14.4144406,1583.0,1582.7,3.2078]
[1745146015133,17.6222406,1583.0,1582.9,3.2078]
[1745146015332,22.6222406,1583.0,1582.7,5.4358]
[1745146015536,29.9692406,1583.0,1582.7,2.228]
[1745146015734,24.9692406,1583.0,1582.5,3.2078]
[1745146015933,28.76433666,1582.6,1582.2,4.47191]
[1745146016137,30.99233666,1582.6,1582.2,3.2078]
[1745146016331,30.99233666,1582.6,1582.2,4.1876]
[1745146016733,34.20013666,1582.6,1582.2,4.1876]
[1745146017832,34.20013666,1582.6,1582.3,10.0723]
[1745146018136,30.99233666,1582.6,1582.3,10.0723]
[1745146018345,34.20013666,1582.6,1582.3,10.0723]
[1745146019341,30.99233666,1582.6,1582.3,10.0723]
[1745146019542,34.20013666,1582.6,1582.3,10.0723]
[1745146019744,34.20013666,1582.6,1581.8,7.345]
[1745146019745,3.2078,1582.4,1581.8,3.2078]
[1745146019945,3.2078,1582.2,1581.8,4.1876]
[1745146020143,9.5466,1582.1,1581.8,3.2078]
[1745146020639,9.5466,1582.1,1581.8,5.45208]
[1745146020841,9.5466,1582.1,1581.8,4.47228]
[1745146021041,3.2078,1582.0,1581.6,3.2078]
[1745146021246,14.5428,1581.9,1581.8,1.26448]
[1745146021439,7.3644,1582.1,1581.8,4.1876]
[1745146021743,9.5466,1582.0,1581.9,1.26434]
[1745146022140,11.7746,1582.0,1581.7,9.3937]
[1745146022338,11.7746,1582.0,1581.5,4.47247]
[1745146022545,11.7746,1582.0,1581.6,1.26461]
[1745146022739,11.7746,1582.0,1581.6,10.65831]
[1745146022938,11.7746,1582.0,1581.6,11.63811]
[1745146023141,11.7746,1582.0,1581.8,1.26443]
[1745146023549,11.7746,1582.0,1581.8,0.9798]
[1745146027344,11.7746,1582.0,1581.7,3.2078]
[1745146027551,3.2078,1581.8,1581.4,1.26479]
[1745146027751,10.50288,1581.7,1581.3,14.60993]
[1745146027947,10.50288,1581.7,1581.3,15.58973]
[1745146028141,12.73088,1581.7,1581.4,1.26477]
[1745146028342,11.4663,1581.7,1581.4,1.26477]
[1745146028542,11.4663,1581.7,1581.4,12.38187]
[1745146028846,12.7309,1581.7,1581.4,11.1171]
[1745146029352,12.7309,1581.7,1581.4,12.38189]
[1745146029542,11.4663,1581.7,1581.4,12.38189]
[1745146030045,11.4663,1581.7,1581.5,3.2078]
[1745146030246,11.4663,1581.7,1581.6,10.84934]
[1745146030447,11.4663,1581.7,1581.6,9.5847]
[1745146030646,11.4663,1581.7,1581.6,11.82914]
[1745146031047,11.4663,1581.7,1581.6,10.5645]
[1745146031847,11.4663,1581.7,1581.6,0.9798]
[1745146032061,12.73086,1581.7,1581.6,0.9798]
[1745146032976,1.26464,1581.6,1581.5,3.2078]
[1745146033261,11.4769,1581.6,1581.5,3.2078]
[1745146034170,12.74154,1581.6,1581.5,3.2078]
[1745146034367,11.4769,1581.6,1581.5,3.2078]
[1745146034770,11.4769,1581.6,1581.5,5.45232]
[1745146035162,11.4769,1581.6,1581.5,4.1876]
[1745146035569,11.4769,1581.6,1581.5,5.45232]
[1745146035867,11.4769,1581.6,1581.5,4.1876]
[1745146036276,9.2489,1581.6,1581.5,4.1876]
[1745146037177,10.51354,1581.6,1581.5,4.1876]
[1745146037476,10.51354,1581.6,1581.5,3.2078]
[1745146038179,12.74154,1581.6,1581.5,3.2078]
[1745146038771,11.4769,1581.6,1581.5,3.2078]
[1745146038972,12.74154,1581.6,1581.5,3.2078]
[1745146039171,11.4769,1581.6,1581.5,3.2078]
[1745146039480,11.4769,1581.6,1581.3,12.8703]
[1745146039679,1.26477,1581.5,1581.3,13.8501]
[1745146039881,9.7288,1581.4,1581.3,13.8501]
[1745146040075,9.7288,1581.4,1580.8,10.2418]
[1745146040276,15.043,1581.4,1581.1,9.8203]
[1745146040577,1.26496,1581.2,1581.1,9.8203]
[1745146040778,1.26504,1581.1,1581.0,3.2078]
[1745146041080,1.26494,1581.3,1581.0,5.45272]
[1745146041276,9.7288,1581.2,1581.1,9.8203]
[1745146041471,5.3142,1581.4,1581.1,11.08529]
[1745146041472,6.57906,1581.4,1581.1,11.08529]
[1745146041673,16.53226,1581.4,1581.1,12.06509]
[1745146041870,16.53226,1581.4,1581.2,10.0749]
[1745146041871,1.26488,1581.3,1581.2,10.0749]
[1745146042077,12.1812,1581.3,1581.2,10.0749]
[1745146042278,13.44608,1581.3,1581.2,11.0547]
[1745146042479,12.1812,1581.3,1581.2,11.0547]
[1745146044079,12.1812,1581.3,1581.2,12.31966]
[1745146044385,12.1812,1581.3,1581.2,11.0547]
[1745146045077,13.44608,1581.3,1581.2,11.0547]
[1745146045281,11.21808,1581.3,1581.2,11.0547]
[1745146045671,9.9532,1581.3,1581.0,3.2078]
[1745146045871,1.26504,1581.1,1581.0,4.1876]
[1745146047180,1.26502,1581.2,1581.0,4.1876]
[1745146047383,9.6298,1581.1,1581.0,4.1876]
[1745146047678,10.89484,1581.1,1581.0,4.1876]
[1745146050080,13.12284,1581.1,1581.0,4.1876]
[1745146050983,13.12284,1581.1,1581.0,3.2078]
[1745146051184,13.12284,1581.1,1581.0,4.1876]
[1745146051785,13.12284,1581.1,1581.0,0.9798]
[1745146051786,11.8578,1581.1,1581.0,0.9798]
[1745146051984,13.12284,1581.1,1581.0,0.9798]
[1745146052284,13.12284,1581.1,1581.0,10.4825]
[1745146054485,11.8578,1581.1,1581.0,10.4825]
[1745146054786,13.12284,1581.1,1581.0,10.4825]
[1745146056183,1.26536,1580.7,1580.6,3.2078]
[1745146056485,1.26534,1580.8,1580.6,5.45304]
[1745146056681,3.2078,1581.0,1580.6,4.1876]
[1745146056877,3.2078,1581.0,1580.7,1.2653]
[1745146057182,5.3142,1581.4,1580.8,6.37096]
[1745146057385,9.51438847,1581.7,1581.3,3.2078]
[1745146057583,19.14905847,1581.7,1581.3,4.47267]
[1745146057780,1.26464,1581.6,1581.4,9.4093]
[1745146058089,10.89924,1581.6,1581.4,9.4093]
[1745146058385,19.04021654,1583.4,1582.0,3.2078]